[Event "Uhlenkoeper-Open 2024"]
[Site "Uelzen"]
[Date "2024.12.30"]
[Round "8.10"]
[White "Juergenpott, Maximilian"]
[Black "Ritter, Uwe"]
[Result "0-1"]
[ECO "A17"]
[WhiteElo "1788"]
[BlackElo "1954"]
[Annotator "NA"]
[PlyCount "118"]
[EventDate "2024.12.27"]
[EventType "swiss"]
[EventCountry "GER"]
[SourceTitle "playchess.com"]
[Source "ChessBase"]
[SourceQuality "1"]
[TimeControl "40/5400+30:1800+30"]

1. Nf3 {[%emt 0:00:04]} Nf6 {[%emt 0:00:03]} 2. e3 {[%emt 0:00:07]} e6 {[%emt 0:02:10]} 3. c4 {[%emt 0:00:29]} c5 {[%emt 0:00:11]} 4. Nc3 {[%emt 0:00:07]} d5 {[%emt 0:00:24]} 5. cxd5 {[%emt 0:02:54]} Nxd5 {[%emt 0:00:48]} 6. Bb5+ {[%emt 0:03:40]} Bd7 {[%emt 0:00:33]} 7. Qb3 {[%emt 0:01:18]} Nxc3 {[%emt 0:04:25]} 8. bxc3 {[%emt 0:00:11]} Bxb5 {[%emt 0:00:19]} 9. Qxb5+ {[%emt 0:00:08]} Qd7 {[%emt 0:00:06]} 10. Qxd7+ {[%emt 0:07:00]} Nxd7 {[%emt 0:00:03]} 11. Rb1 {[%emt 0:00:10]} b6 {[%emt 0:01:00]} 12. d4 {[%emt 0:00:31]} Bd6 {[%emt 0:00:16]} 13. e4 {[%emt 0:01:27]} cxd4 {[%emt 0:01:21]} 14. cxd4 {[%emt 0:00:08]} O-O {[%emt 0:02:55]} 15. Kd2 {[%emt 0:07:16]} e5 {[%emt 0:00:50]} 16. Bb2 {[%emt 0:02:54]} Rfd8 {[%emt 0:11:47]} 17. Ke3 {[%emt 0:08:41]} exd4+ {[%emt 0:04:06]} 18. Bxd4 {[%emt 0:00:20]} Nc5 {[%emt 0:00:15]} 19. e5 {[%emt 0:16:04]} Bf8 {[%emt 0:01:13]} 20. Rhd1 {[%emt 0:00:33]} g6 {[%emt 0:01:40]} 21. Ne1 {[%emt 0:06:04]} Ne6 {[%emt 0:04:25]} 22. Ba1 {[%emt 0:04:25]} g5 {[%emt 0:06:11]} 23. g3 {[%emt 0:01:47]} g4 {[%emt 0:01:50]} 24. Nd3 {[%emt 0:00:15]} Bh6+ {[%emt 0:00:16]} 25. Ke4 {[%emt 0:01:52]} Rac8 {[%emt 0:03:19]} 26. f4 {[%emt 0:06:02]} gxf3 {[%emt 0:01:20]} 27. Kxf3 {[%emt 0:00:11]} Ng5+ {[%emt 0:00:48]} 28. Kg4 {[%emt 0:01:35]} Ne6 {[%emt 0:01:51]} 29. Nf4 {[%emt 0:01:19]} Rxd1 {[%emt 0:07:18]} 30. Rxd1 {[%emt 0:00:11]} Bxf4 {[%emt 0:00:10]} 31. gxf4 {[%emt 0:00:11]} Rc4 {[%emt 0:00:02]} 32. Rf1 {[%emt 0:01:24]} h5+ {[%emt 0:21:23]} 33. Kg3 {[%emt 0:06:16]} Ra4 {[%emt 0:01:38]} 34. Rf2 {[%emt 0:00:57]} Ra3+ {[%emt 0:01:25]} 35. Kh4 {[%emt 0:04:02]} Ra4 {[%emt 0:00:01]} 36. Kg3 {[%emt 0:00:15]} Kh7 {[%emt 0:00:31]} 37. f5 {[%emt 0:04:56]} Ng5 {[%emt 0:04:08]} 38. Rc2 {[%emt 0:00:26]} Rg4+ {[%emt 0:01:38]} 39. Kf2 {[%emt 0:00:06]} Rf4+ {[%emt 0:00:16]} 40. Ke3 {[%emt 0:00:15]} Rf3+ {[%emt 0:00:25]} 41. Ke2 {[%emt 0:30:11]} Rxf5 {[%emt 0:33:05]} 42. Rc7 {[%emt 0:00:23]} a5 {[%emt 0:01:27]} 43. Rb7 {[%emt 0:00:16]} Nh3 {[%emt 0:00:31]} 44. Bd4 {[%emt 0:01:16]} Nf4+ {[%emt 0:03:35]} 45. Ke3 {[%emt 0:01:12]} Ne6 {[%emt 0:00:06]} 46. Bc3 {[%emt 0:02:30]} Nc5 {[%emt 0:00:48]} 47. Rb8 {[%emt 0:02:34]} Rg5 {[%emt 0:01:33]} 48. Kf3 {[%emt 0:02:12]} Rg6 {[%emt 0:02:43]} 49. Rc8 {[%emt 0:00:00]} Re6 {[%emt 0:00:00]} 50. Rc7 {[%emt 0:00:00]} Kg6 {[%emt 0:00:00]} 51. Bd4 {[%emt 0:00:00]} Nd3 {[%emt 0:00:00]} 52. Ke4 {[%emt 0:00:00]} Nb4 {[%emt 0:00:00]} 53. a4 {[%emt 0:00:00]} f6 {[%emt 0:00:00]} 54. Rb7 {[%emt 0:00:00]} Nc6 {[%emt 0:00:00]} 55. Bxb6 {[%emt 0:00:00]} Rxe5+ {[%emt 0:00:00]} 56. Kf4 {[%emt 0:00:00]} Nb4 {[%emt 0:00:00]} 57. Bd4 {[%emt 0:00:00]} Re2 {[%emt 0:00:00]} 58. Rb5 {[%emt 0:00:00]} Rxh2 {[%emt 0:00:00]} 59. Rxa5 {[%emt 0:00:00]} Rh4+ {[%emt 0:00:00]} 0-1